fUSD/lending_fUSD_20240412
["ID","MTS","AMOUNT","RATE_DAILY","PERIOD"]
[322317272,1712948467540,292.0,0.0002097,15]
[322317273,1712948468057,292.0,0.0002096,15]
[322317274,1712948473727,169.99,0.00014757,2]
[322317275,1712948486503,500.0,0.00018449,2]
[322317276,1712948487774,2334.38528072,0.00013853,2]
[322317277,1712948505794,160.34,0.0001832,2]
[322317278,1712948513105,4223.05,0.0001832,2]
[322317280,1712948518114,697.99,0.00018292,2]
[322317281,1712948523070,146.62231149,0.00019002,2]
[322317291,1712948712346,-407.75423407,0.00018012,2]
[322317292,1712948712366,-266.98694535,0.00018012,2]
[322317293,1712948712386,-161.84491414,0.00018013,2]
[322317294,1712948712406,-443.55932997,0.00018013,2]
[322317295,1712948712425,-199.96787162,0.00018013,2]
[322317296,1712948712445,-206.07151773,0.00018014,2]
[322317297,1712948712464,-1525.32,0.00018015,2]
[322317298,1712948712485,-13788.49518712,0.0001811,2]
[322317299,1712948730600,164.23328005,0.00018009,2]
[322317300,1712948731306,155.0,0.00018009,2]
[322317301,1712948731926,630.19,0.00018006,2]
[322317302,1712948764726,2104.37612516,0.00018009,2]
[322317305,1712948824171,150.5,0.0001959,15]
[322317306,1712948824641,150.5,0.0001958,15]
[322317307,1712948825122,150.5,0.0001957,15]
[322317308,1712948825597,202.5,0.0002097,15]
[322317310,1712948833212,282.1782915,0.00017948,2]
[322317311,1712948836635,319.11030191,0.0001801,2]
[322317315,1712948867047,366.43,0.0001754,2]
[322317316,1712948874932,200.0,0.0001751,2]
[322317317,1712948906348,150.0,0.0001751,2]
[322317318,1712948908772,250.0,0.0001751,2]
[322317320,1712948921331,10725.02977506,0.00018007,2]
[322317322,1712948936454,719.43,0.00015421,2]
[322317323,1712948936674,719.43,0.00017685,2]
[322317324,1712948944665,190.34,0.0001751,2]
[322317325,1712948945614,180.16,0.0001751,2]
[322317326,1712948946388,180.16,0.00026265,120]
[322317328,1712948959334,500.0,0.0001751,2]
[322317329,1712948994504,500.0,0.00017524,2]
[322317331,1712948997382,3092.71706109,0.00018007,2]
[322317333,1712949004342,633.2,0.00017524,2]
[322317404,1712949033323,-486.48174072,0.00018034,2]
[322317405,1712949033338,-4400.54871847,0.00018035,2]
[322317406,1712949033352,-2104.37612516,0.00018035,2]
[322317407,1712949033372,-155.0,0.00018036,2]
[322317408,1712949033387,-1062.42894718,0.00018036,2]
[322317409,1712949033403,-4315.63124223,0.00018037,2]
[322317410,1712949033418,-266.98694535,0.00018037,2]
[322317411,1712949033433,-150.0,0.00018039,2]
[322317412,1712949033448,-150.0,0.00018039,2]
[322317413,1712949033463,-300.0,0.00018039,2]
[322317414,1712949033477,-2336.68,0.0001805,2]
[322317415,1712949033492,-244.0412895,0.00018106,2]
[322317416,1712949033506,-2177.96914085,0.00018106,2]
[322317419,1712949033521,-620.76154745,0.00018107,2]
[322317421,1712949033542,-14575.71430859,0.00018107,2]
[322317425,1712949033562,-6473.32561868,0.00018107,2]
[322317428,1712949033587,-338.36,0.00018107,2]
[322317432,1712949033613,-1352.45572667,0.00018107,2]
[322317435,1712949033631,-2527.988,0.00018107,2]
[322317438,1712949033649,-3825.83414052,0.00018107,2]
[322317441,1712949033670,-40001.01099999,0.00018107,2]
[322317444,1712949033689,-66731.03218307,0.00018107,2]
[322317447,1712949033710,-3230.63302066,0.00018107,2]
[322317450,1712949033732,-3488.70648458,0.00018107,2]
[322317453,1712949033760,-2755.797,0.00018107,2]
[322317456,1712949033780,-2185.67117516,0.00018107,2]
[322317459,1712949033803,-17524.50238198,0.00018107,2]
[322317462,1712949033825,-291.775,0.00018107,2]
[322317466,1712949033855,-114331.01285835,0.00018107,2]
[322317470,1712949033883,-281.03644376,0.00018107,2]
[322317473,1712949033903,-333.315,0.00018107,2]
[322317544,1712949038375,-742.0473635,0.00018107,2]
[322317567,1712949038654,-36576.8298419,0.00018107,2]
[322317568,1712949038665,-310.46828507,0.00018108,2]
[322317570,1712949038678,-268.85140275,0.00018108,2]
[322317572,1712949038688,-57518.98760433,0.00018108,2]
[322317574,1712949038697,-164.36062431,0.00018108,2]
[322317576,1712949038707,-82606.8,0.00018108,2]
[322317577,1712949038716,-199.70370161,0.00018108,2]
[322317578,1712949038725,-268.05043919,0.00018108,2]
[322317579,1712949038734,-442.40237444,0.00018108,2]
[322317580,1712949038744,-2926.74,0.00018108,2]
[322317581,1712949038753,-4379.21,0.00018108,2]
[322317582,1712949038763,-999.99,0.00018108,2]
[322317584,1712949038772,-9999.99,0.00018108,2]
[322317586,1712949038781,-665.47161161,0.00018109,2]
[322317588,1712949038794,-61718.64,0.00018111,2]
[322317590,1712949038803,-150.99,0.00018111,2]
[322317592,1712949038813,-499.99,0.00018111,2]
[322317594,1712949038822,-279.94,0.00018116,2]
[322317596,1712949038831,-162.58,0.00018117,2]
[322317598,1712949038840,-224.85,0.00018164,2]
[322317600,1712949038849,-162.58,0.00018166,2]
[322317602,1712949038859,-162.58,0.00018216,2]
[322317604,1712949038869,-23900.0,0.00018266,2]
[322317606,1712949038878,-1827.93,0.00018266,2]
[322317608,1712949038887,-162.58,0.00018266,2]
[322317610,1712949038896,-162.58,0.00018315,2]
[322317612,1712949038905,-200.0,0.0001832,2]
[322317614,1712949038914,-162.58,0.00018365,2]
[322317616,1712949038923,-162.58,0.00018415,2]
[322317618,1712949038932,-162.58,0.00018465,2]
[322317620,1712949038941,-162.58,0.00018514,2]
[322317622,1712949038951,-162.58,0.00018564,2]
[322317624,1712949038960,-162.58,0.00018614,2]
[322317626,1712949038970,-162.58,0.00018663,2]
[322317628,1712949038979,-162.58,0.00018713,2]
[322317630,1712949038988,-162.58,0.00018763,2]
[322317632,1712949038997,-162.58,0.00018812,2]
[322317634,1712949039006,-162.58,0.00018862,2]
[322317636,1712949039015,-158.54228316,0.00018902,2]
[322317638,1712949039024,-206.86865437,0.00018902,2]
[322317640,1712949039036,-162.58,0.00018912,2]
[322317642,1712949039045,-162.58,0.00018962,2]
[322317644,1712949039054,-3169.24161209,0.00018989,2]
[322317646,1712949039063,-644.86581108,0.00018999,2]
[322317648,1712949039073,-1662937.4752678,0.00019,2]
[322317650,1712949039082,-309.73423132,0.00019002,2]
[322317652,1712949039091,-3835.0274397,0.00019004,2]
[322317654,1712949039100,-6094.57537436,0.00019009,2]
[322317655,1712949039110,-162.58,0.00019011,2]
[322317656,1712949039119,-162.58,0.00019061,2]
[322317657,1712949039128,-631.8,0.00019079,3]
[322317658,1712949039137,-168.45,0.00019082,2]
[322317659,1712949039146,-155.52579973,0.00019087,2]
[322317660,1712949039155,-574.20452515,0.00019087,2]
[322317661,1712949039166,-404.73102028,0.00019087,2]
[322317662,1712949039179,-550.75005717,0.00019087,2]
[322317663,1712949039188,-155.0,0.00019087,2]
[322317665,1712949039197,-785.52907082,0.00019087,2]
[322317667,1712949039207,-196.41457958,0.00019087,2]
[322317671,1712949039218,-160.1828942,0.00019087,2]
[322317675,1712949039228,-704.91869228,0.00019087,2]
[322317682,1712949039239,-1089.65662145,0.00019087,2]
[322317687,1712949039250,-155.0,0.00019087,2]
[322317690,1712949039261,-304.46832005,0.00019087,2]
[322317693,1712949039271,-408.15974753,0.00019087,2]
[322317695,1712949039281,-245.08709582,0.00019087,2]
[322317698,1712949039294,-155.08538378,0.00019087,2]
[322317701,1712949039304,-285.46840956,0.00019087,2]
[322317705,1712949039314,-1476.46668772,0.00019087,2]
[322317707,1712949039323,-418.13620905,0.00019087,2]
[322317710,1712949039333,-9114.98491769,0.00019087,2]
[322317712,1712949039343,-5899.095,0.00019089,2]
[322317714,1712949039352,-337.26,0.00019091,2]
[322317715,1712949039361,-3159.87967817,0.00019092,2]
[322317717,1712949039370,-202.85165673,0.00019178,2]
[322317719,1712949039379,-500.0,0.00019178,2]
[322317720,1712949039388,-345.53082816,0.00019178,2]
[322317722,1712949039398,-434.2716674,0.00019178,2]
[322317724,1712949039407,-500.0,0.00019178,2]
[322317725,1712949039416,-500.0,0.00019178,2]
[322317726,1712949039425,-192.86599838,0.00019178,2]
[322317727,1712949039435,-500.0,0.00019178,2]
[322317728,1712949039443,-500.0,0.00019178,2]
[322317729,1712949039452,-500.0,0.00019178,2]
[322317730,1712949039461,-500.0,0.00019178,2]
[322317731,1712949039470,-500.0,0.00019178,2]
[322317732,1712949039479,-200.0,0.00019178,2]
[322317733,1712949039488,-150.99,0.00019178,2]
[322317734,1712949039497,-1500.0,0.00019178,2]
[322317735,1712949039506,-3408.1,0.00019178,2]
[322317736,1712949039515,-2574.72,0.00019178,2]
[322317737,1712949039524,-3862.26830008,0.000192,2]
[322317738,1712949039533,-241.09,0.00019385,2]
[322317739,1712949039546,-1000.0,0.00019442,2]
[322317740,1712949039555,-155.15954305,0.0001953,2]
[322317741,1712949039564,-155.15954301,0.00019571,2]
[322317742,1712949039573,-155.15954301,0.00019611,2]
[322317743,1712949039582,-155.15954301,0.00019652,2]
[322317744,1712949039591,-699.01,0.00019652,2]
[322317745,1712949039600,-155.15954301,0.00019693,2]
[322317746,1712949039610,-155.15954301,0.00019733,2]
[322317747,1712949039619,-155.15954301,0.00019774,2]
[322317748,1712949039628,-155.15954301,0.00019815,2]
[322317749,1712949039637,-210.0,0.00019842,2]
[322317750,1712949039646,-155.15954301,0.00019855,2]
[322317751,1712949039656,-155.15954301,0.00019896,2]
[322317752,1712949039665,-251.08783605,0.00019896,2]
[322317753,1712949039675,-151.94933981,0.000199,2]
[322317754,1712949039685,-155.15954301,0.00019936,2]
[322317755,1712949039694,-719.43,0.00019949,2]
[322317756,1712949039703,-155.15954301,0.00019977,2]
[322317757,1712949039713,-899.28820135,0.0002,2]
[322317758,1712949039722,-5569.39698243,0.0002,2]
[322317759,1712949039731,-3950.0,0.0002,2]
[322317760,1712949039741,-633.49451801,0.0002,2]
[322317761,1712949039751,-155.0,0.0002,2]
[322317762,1712949039760,-185.89286211,0.0002,2]
[322317763,1712949039769,-155.15954301,0.00020018,2]
[322317764,1712949039779,-155.15954301,0.00020058,2]
[322317765,1712949039792,-427.77076856,0.00020087,2]
[322317766,1712949039802,-210.85118914,0.00020097,2]
[322317767,1712949039812,-155.42492609,0.00020097,2]
[322317769,1712949039822,-1969.91143067,0.00020097,2]
[322317770,1712949039831,-3387.01845535,0.00020097,2]
[322317771,1712949039840,-2929.59794809,0.00020097,2]
[322317772,1712949039850,-8887.75956879,0.00020097,2]
[322317773,1712949039860,-3087.72444768,0.00020097,2]
[322317774,1712949039869,-155.35542307,0.00020097,2]
[322317775,1712949039879,-296.05923252,0.00020097,2]
[322317776,1712949039888,-155.35415672,0.00020097,2]
[322317778,1712949039898,-1027.04377455,0.00020097,2]
[322317780,1712949039907,-254.11589084,0.00020097,2]
[322317781,1712949039916,-206.34862353,0.00020097,2]
[322317782,1712949039926,-2175.08703921,0.00020097,2]
[322317783,1712949039935,-236.2586598,0.00020097,2]
[322317784,1712949039945,-155.3172212,0.00020097,2]
[322317785,1712949039955,-336.10369581,0.00020098,2]
[322317786,1712949039965,-47896.0109,0.00020099,2]
[322317787,1712949039974,-727.2416,0.00020099,2]
[322317788,1712949039984,-155.15954301,0.00020099,2]
[322317789,1712949039993,-14463.0,0.00020192,2]
[322317790,1712949040003,-212.92520645,0.00020196,2]
[322317791,1712949040012,-67163.64184102,0.00020199,2]
[322317793,1712949040026,-58149.12451573,0.00020199,2]
[322317794,1712949040040,-4722.76454072,0.00020199,2]
[322317795,1712949040160,-333.50856,0.00020199,2]
[322317796,1712949040173,-303.48,0.00020199,2]
[322317797,1712949040228,-5886.00910778,0.00020199,2]
[322317798,1712949040240,-365.46459768,0.00020199,2]
[322317799,1712949040251,-355.98875763,0.00020199,2]
[322317800,1712949040266,-377.916516,0.00020199,2]
[322317809,1712949040907,-848.26710872,0.00020199,2]
[322317810,1712949040918,-5996.22075,0.00020199,2]
[322317811,1712949040930,-259.7917215,0.00020199,2]
[322317812,1712949040941,-438.63863448,0.00020199,2]
[322317813,1712949040953,-296.79670088,0.00020199,2]
[322317814,1712949041150,-4398.63388976,0.00020199,2]
[322317815,1712949041161,-95103.7527581,0.00020199,2]
[322317816,1712949041172,-159.58389605,0.000202,2]
[322317817,1712949041181,-1653.92276145,0.000202,2]
[322317818,1712949041190,-299.43965055,0.000202,2]
[322317819,1712949041201,-16593.666,0.00020298,2]
[322317820,1712949041210,-500.0,0.000203,2]
[322317821,1712949041220,-932.7116,0.000203,2]
[322317822,1712949041229,-23818.12480776,0.00020301,2]
[322317823,1712949041238,-194.23284435,0.00020311,2]
[322317824,1712949041246,-159141.75964106,0.000204,2]
[322317825,1712949041256,-5070.38425902,0.000204,2]
[322317826,1712949041266,-222.53887842,0.00020411,2]
[322317827,1712949041276,-10243.43591538,0.00020511,2]
[322317828,1712949041297,-6281.42716305,0.00020511,2]
[322317829,1712949041309,-2659.85271412,0.00020511,2]
[322317830,1712949041318,-166.55,0.00020539,2]
[322317831,1712949041327,-170.69,0.000206,2]
[322317832,1712949041336,-10355.41565354,0.00020773,2]
[322317833,1712949041348,-358.67975023,0.00020773,2]
[322317834,1712949041359,-10.93437129,0.00020773,2]
[322317835,1712949041368,-952.55000392,0.00020773,2]
[322317836,1712949041380,-2140.16705713,0.00020773,2]
[322317837,1712949041390,-2336.68,0.00020789,2]
[322317838,1712949041399,-867.45621463,0.00020898,2]
[322317839,1712949041410,-469.31617923,0.00020898,2]
[322317840,1712949041422,-3742.8220298,0.00020898,2]
[322317841,1712949041434,-668.84502,0.00020898,2]
[322317842,1712949041445,-1237.5,0.00020898,2]
[322317843,1712949041469,-848.067256,0.00020898,2]
[322317844,1712949041481,-267.088,0.00020898,2]
[322317845,1712949041495,-4447.22814572,0.00020898,2]
[322317846,1712949041504,-158.54228316,0.000209,2]
[322317847,1712949041514,-216.18675365,0.000209,3]
[322317848,1712949041523,-23294.82346167,0.0002098,2]
[322317849,1712949041535,-2320.76865343,0.0002098,2]
[322317850,1712949041554,-551.99511457,0.0002098,2]
[322317851,1712949041573,-485.60449987,0.0002098,2]
[322317852,1712949041584,-581.48634255,0.0002098,2]
[322317853,1712949041596,-686.52799901,0.0002098,2]
[322317909,1712949043376,-2125.97791999,0.0002098,2]
[322317911,1712949043389,-2148.57951319,0.0002098,2]
[322317914,1712949043402,-2246.20579112,0.0002098,2]
[322317919,1712949043496,-17846.36062216,0.0002098,2]
[322317920,1712949043508,-34744.20238712,0.0002098,2]
[322317921,1712949044076,-30413.38764238,0.0002098,2]
[322317922,1712949044089,-2026.86829742,0.0002098,2]
[322317923,1712949044172,-5757.46823768,0.0002098,2]
[322317924,1712949044184,-781.96717494,0.0002098,2]
[322317925,1712949044196,-691.27567446,0.0002098,2]
[322317926,1712949044221,-11491.27814297,0.0002098,2]
[322317927,1712949044233,-3616.57961262,0.0002098,2]
[322317928,1712949044244,-5578.36346638,0.0002098,2]
[322317929,1712949044257,-2732.97936325,0.0002098,2]
[322317930,1712949044277,-1199.98947768,0.0002098,2]
[322317931,1712949044290,-27662.65122271,0.0002098,2]
[322317932,1712949044305,-654.02,0.0002098,2]
[322317933,1712949044331,-275478.10560682,0.0002098,2]
[322317934,1712949044340,-2209.24532718,0.00021,2]
[322317935,1712949044349,-2092793.54881972,0.00021,2]
[322318002,1712949046275,-487.68188735,0.00020979,2]
[322318004,1712949046288,-878.44920079,0.00020979,2]
[322318008,1712949046356,-3024.56464446,0.00020979,2]
[322318009,1712949046366,-486.48174072,0.00020979,2]
[322318010,1712949046375,-2743.66141515,0.00021,2]
[322318011,1712949046388,-100284.10080003,0.00021,2]
[322318013,1712949046399,-2454.4590338,0.00021,2]
[322318017,1712949046425,-299.04445244,0.00021,2]
[322318019,1712949046437,-1088.5,0.00021,2]
[322318021,1712949046448,-4468.44806987,0.00021,2]
[322318024,1712949046460,-16026.1241104,0.00021,2]
[322318034,1712949046560,-279.880065,0.00021,2]
[322318037,1712949046576,-2462.68515412,0.00021,2]
[322318039,1712949046588,-738.57999998,0.00021,2]
[322318043,1712949046615,-14779.27516006,0.00021,2]
[322318055,1712949185639,150.5,0.0002099,15]
[322318056,1712949186122,150.5,0.0002098,15]
[322318057,1712949186620,288.86,0.0002097,15]
[322318058,1712949195431,150.0,0.00018007,2]
[322318059,1712949195454,150.0,0.00018007,2]
[322318060,1712949195479,150.0,0.00018007,2]
[322318061,1712949195499,150.0,0.00018007,2]
[322318062,1712949195520,150.0,0.00018007,2]
[322318063,1712949195541,150.0,0.00018007,2]
[322318064,1712949195563,150.0,0.00018007,2]
[322318065,1712949195586,150.0,0.00018007,2]
[322318066,1712949195611,150.0,0.00018007,2]
[322318067,1712949195632,150.0,0.00018007,2]
[322318068,1712949195652,150.0,0.00018007,2]
[322318069,1712949195672,150.0,0.00018007,2]
[322318070,1712949195692,150.0,0.00018007,2]
[322318071,1712949195712,150.0,0.00018007,2]
[322318072,1712949195733,150.0,0.00018007,2]
[322318073,1712949195754,150.0,0.00018007,2]
[322318074,1712949195775,150.0,0.00018007,2]
[322318075,1712949195795,4239.7549,0.00018007,2]
[322318081,1712949340564,-150.0,0.00018106,2]
[322318082,1712949340588,-467.19131066,0.00018107,2]
[322318083,1712949340612,-14382.80868934,0.00018107,2]
[322318108,1712949399557,150.0,0.00017656,2]
[322318109,1712949399579,20.89,0.00017656,2]
[322318119,1712949522618,302.21,0.0002506,120]
[322318120,1712949522971,302.21,0.00027566,120]
[322318121,1712949523324,302.21,0.00030072,120]
[322318153,1712949664140,50600.0,0.00015,2]
[322318156,1712949703423,-353.14913346,0.00018106,2]
[322318157,1712949703448,-150.0,0.00018106,2]
[322318158,1712949703473,-1552.02482247,0.00018107,2]
[322318159,1712949703495,-12994.78671762,0.00018107,2]
[322318160,1712949703519,-170.89,0.00018116,2]
[322318161,1712949716294,-629.35,0.00018516,2]
[322318162,1712949716320,-170.89,0.00018576,2]
[322318163,1712949716348,-23900.0,0.00019826,2]
[322318164,1712949716374,-1500.0,0.00019872,2]
[322318165,1712949716398,-200.0,0.00019889,2]
[322318166,1712949716422,-2494.3,0.00019901,2]
[322318167,1712949716448,-316.6,0.00019976,2]
[322318168,1712949716472,-150.0,0.00020002,2]
[322318169,1712949716496,-284.5,0.00020031,2]
[322318170,1712949716521,-716.03,0.00020031,2]
[322318171,1712949716548,-302.21,0.00020048,2]
[322318172,1712949716576,-1782.49,0.00020096,2]
[322318173,1712949716600,-500.0,0.00020261,2]
[322318174,1712949716624,-250.0,0.00020589,2]
[322318175,1712949716649,-158.82481502,0.00020732,2]
[322318176,1712949716673,-629.35,0.0002078,2]
[322318177,1712949716697,-348.6267,0.00020799,2]
[322318178,1712949716720,-2500.0,0.00020799,2]
[322318179,1712949716744,-319.74763005,0.00020799,2]
[322318180,1712949716768,-2921.22063175,0.00020799,2]
[322318181,1712949716791,-200.0,0.00020832,2]
[322318182,1712949716814,-200.0,0.00020832,2]
[322318183,1712949716837,-500.0,0.00020832,2]
[322318184,1712949716860,-225.22606517,0.00020897,2]
[322318185,1712949716884,-374.94515625,0.00020897,2]
[322318186,1712949716909,-474.48060157,0.00020897,2]
[322318187,1712949716932,-2356.04018017,0.00020898,2]
[322318188,1712949716956,-500.0,0.00020899,2]
[322318189,1712949716979,-2042.3638,0.00020899,2]
[322318190,1712949717003,-7500.0,0.00020899,2]
[322318191,1712949717028,-39966.7422,0.00020899,2]
[322318192,1712949717051,-100000.0,0.00020899,2]
[322318193,1712949717076,-29861.9285,0.00020899,2]
[322318194,1712949717101,-10503.28304647,0.00020899,2]
[322318218,1712950099136,-583.35,0.00018565,2]
[322318219,1712950099162,-1000.0,0.00020598,2]
[322318220,1712950099190,-158.3,0.00020599,2]
[322318221,1712950099217,-200.0,0.00020612,2]
[322318222,1712950099244,-2211.61171423,0.00020695,2]
[322318223,1712950099271,-887.6038,0.00020696,2]
[322318224,1712950099298,-6486.5447,0.00020699,2]
[322318225,1712950099323,-500.0,0.00020799,2]
[322318226,1712950099356,-1000.0,0.00020799,2]
[322318227,1712950099381,-1090.047,0.00020799,2]
[322318228,1712950099408,-10982.167,0.00020799,2]
[322318229,1712950099436,-31900.37578577,0.00020799,2]
[322318268,1712950232317,-442.695,0.00019945,2]
[322318269,1712950232374,-900.0427453,0.00019945,2]
[322318270,1712950232383,-1000.0,0.00020576,2]
[322318271,1712950232392,-150.0,0.00020577,2]
[322318272,1712950232401,-1000.0,0.00020577,2]
[322318273,1712950232409,-4553.80799307,0.00020578,2]
[322318274,1712950232433,-11839.3002,0.00020578,2]
[322318275,1712950232443,-270.38829693,0.00020578,2]
[322318276,1712950232460,-7236.50351,0.00020578,2]
[322318277,1712950232469,-1662.53,0.00020635,2]
[322318278,1712950232478,-1000.0,0.00020635,2]
[322318279,1712950232488,-158.29825463,0.00020699,2]
[322318280,1712950232501,-164.20368944,0.00020798,2]
[322318281,1712950232510,-68099.62421423,0.00020799,2]
[322318282,1712950232519,-1659.5068,0.00020799,2]
[322318283,1712950232530,-2629.09856862,0.00020799,2]
[322318284,1712950232539,-250.0,0.00020819,2]
[322318285,1712950232549,-583.35,0.00020829,2]
[322318286,1712950232558,-155.0,0.00020898,2]
[322318287,1712950232568,-2031.87318928,0.00020898,2]
[322318288,1712950232578,-234496.71695353,0.00020899,2]
[322318289,1712950232587,-1000.0,0.00020899,2]
[322318290,1712950232597,-7500.0,0.00020899,2]
[322318291,1712950232606,-150.99,0.00020899,2]
[322318292,1712950232615,-499.99,0.00020899,2]
[322318293,1712950232625,-150.99,0.00020899,2]
[322318294,1712950232635,-178.03110272,0.00020899,2]
[322318295,1712950232644,-505.85369589,0.00020899,2]
[322318296,1712950232653,-151.99775352,0.00020899,2]
[322318297,1712950232663,-184.24281591,0.00020899,2]
[322318298,1712950232672,-6225.54787248,0.00020899,2]
[322318299,1712950232681,-158.29825462,0.00020899,2]
[322318300,1712950232691,-167.0089345,0.000209,2]
[322318301,1712950232829,-499.03993074,0.000209,2]
[322318302,1712950232841,-172.94940292,0.000209,3]
[322318303,1712950232850,-1102.6151743,0.000209,2]
[322318304,1712950232860,-536.27398007,0.0002096,2]
[322318305,1712950232869,-703.39824769,0.00020979,2]
[322318306,1712950232878,-155.0,0.00020979,2]
[322318307,1712950232888,-1071.51206749,0.00020979,2]
[322318308,1712950232897,-166.55,0.00020987,2]
[322318309,1712950232906,-2983.54677449,0.00020998,2]
[322318310,1712950232916,-273.17281789,0.00020998,2]
[322318311,1712950232925,-500.0,0.00020998,2]
[322318312,1712950232934,-500.0,0.00020998,2]
[322318313,1712950232943,-345.3490955,0.00020998,2]
[322318314,1712950232956,-537.57984342,0.00020998,2]
[322318315,1712950232965,-198.36302852,0.00020998,2]
[322318316,1712950232975,-1255.07550829,0.00020998,2]
[322318317,1712950232984,-155.0,0.00020998,2]
[322318318,1712950232994,-1127.05013364,0.00020999,2]
[322318319,1712950233003,-265.47109911,0.00020999,2]
[322318320,1712950233013,-62586.12792082,0.00020999,2]
[322318321,1712950233025,-259.01548142,0.00020999,2]
[322318322,1712950233036,-309.24230337,0.00020999,2]
[322318323,1712950233049,-3376.02171532,0.00020999,2]
[322318324,1712950233063,-867.67329241,0.00020999,2]
[322318325,1712950233074,-3220.39999997,0.00020999,2]
[322318326,1712950233086,-2970.42390426,0.00020999,2]
[322318327,1712950233107,-383.30028106,0.00020999,2]
[322318328,1712950233127,-317.061,0.00020999,2]
[322318347,1712950239200,-212.66253882,0.00020989,2]
[322318349,1712950239220,-120.92152118,0.0002099,2]
[322318352,1712950239242,-91.74101764,0.0002099,2]
[322318354,1712950239253,-1588648.20936917,0.00020999,2]
[322318356,1712950239263,-36040.87464646,0.00020999,2]
[322318358,1712950239275,-397.3328317,0.00020999,2]
[322318360,1712950239287,-405.3072,0.00020999,2]
[322318362,1712950239298,-380.04,0.00020999,2]
[322318367,1712950239336,-15300.0,0.00020999,2]
[322318370,1712950239348,-385.46466382,0.00020999,2]
[322318385,1712950239493,-412.5504,0.00020999,2]
[322318387,1712950239505,-252.744,0.00020999,2]
[322318389,1712950239522,-888.95229078,0.00020999,2]
[322318401,1712950239640,-1542.87252878,0.00020999,2]
[322318404,1712950239661,-596.04655466,0.00020999,2]
[322318468,1712950240219,-1132.10949543,0.00020999,2]
[322318470,1712950240231,-953.10301248,0.00020999,2]
[322318472,1712950240243,-457.48038743,0.00020999,2]
[322318477,1712950240281,-995.7004721,0.00020999,2]
[322318479,1712950240292,-500.0,0.00020999,2]
[322318481,1712950240302,-500.0,0.00020999,2]
[322318483,1712950240312,-353.57578686,0.00020999,2]
[322318485,1712950240322,-500.0,0.00020999,2]
[322318487,1712950240332,-264.48459217,0.00020999,2]
[322318489,1712950240341,-257.85979952,0.00020999,2]
[322318491,1712950240351,-327.63625378,0.00020999,2]
[322318493,1712950240360,-6960.09657856,0.00021,2]
[322318496,1712950240373,-972.5162748,0.00021,2]
[322318506,1712950240575,-917.3093063,0.00021,2]
[322318509,1712950240592,-500.0,0.00021,2]
[322318511,1712950240604,-3709.30380005,0.00021,2]
[322318517,1712950240657,-1006.632,0.00021,2]
[322318519,1712950240691,-137185.39999858,0.00021,2]
[322318520,1712950240703,-24263.73465755,0.00021,2]
[322318521,1712950240718,-3183.80000012,0.00021,2]
[322318522,1712950240732,-5018.61298411,0.00021,2]
[322318523,1712950240745,-700.0,0.00021,2]
[322318524,1712950240757,-1112.8411164,0.00021,2]
[322318525,1712950240770,-483.40227579,0.00021,2]
[322318526,1712950240784,-2341.97905699,0.00021,2]
[322318527,1712950240809,-409.31944376,0.00021,2]
[322318528,1712950240822,-265.81,0.00021,2]
[322318536,1712950243261,-5604.13587331,0.00021,2]
[322318537,1712950243274,-5361.87644375,0.00021,2]
[322318538,1712950243325,-9178.33207786,0.00021,2]
[322318539,1712950243337,-3665.36551429,0.00021,2]
[322318540,1712950243350,-17580.68472,0.00021,2]
[322318541,1712950243362,-8718.51575507,0.00021,2]
[322318542,1712950243388,-972.96596,0.00021,2]
[322318543,1712950243400,-844.81,0.00021,2]
[322318544,1712950243450,-564.28751857,0.00021,2]
[322318545,1712950243726,-594.50447717,0.00021,2]
[322318546,1712950243778,-1174.30692,0.00021,2]
[322318547,1712950243844,-4530.0,0.00021,2]